bitfinex/quotes_BTCUSD_20250420
["timestamp","ask_amount","ask_price","bid_price","bid_amount"]
[1745150145319,0.0008412,83899.0,83898.0,1.49004825]
[1745150145722,0.0008412,83899.0,83898.0,1.48868813]
[1745150147056,0.0477,83914.0,83899.0,0.35454085]
[1745150147253,0.00013592,83906.0,83901.0,0.34]
[1745150147458,0.00013592,83906.0,83903.0,0.34]
[1745150147667,0.00013592,83906.0,83905.0,0.34]
[1745150147820,0.00013592,83906.0,83905.0,0.4621322]
[1745150149738,0.04953592,83906.0,83905.0,0.6040522]
[1745150151159,0.04945656,83906.0,83905.0,0.6040522]
[1745150155945,0.04816171,83906.0,83905.0,0.6040522]
[1745150159252,0.04816171,83906.0,83905.0,0.4621322]
[1745150159472,0.09736171,83906.0,83905.0,0.6040122]
[1745150162467,0.09836171,83906.0,83905.0,0.6040122]
[1745150163520,0.09836171,83906.0,83905.0,0.4621322]
[1745150163746,0.09836171,83906.0,83905.0,0.48456429]
[1745150167362,0.09836171,83906.0,83905.0,0.6040122]
[1745150167363,0.09736171,83906.0,83905.0,0.6040122]
[1745150167564,0.001477,83909.0,83905.0,0.6040122]
[1745150167763,0.00192996,83909.0,83906.0,0.1218312]
[1745150168194,0.00192996,83909.0,83907.0,0.34256375]
[1745150168398,0.00192996,83909.0,83908.0,0.4588731]
[1745150169008,0.00192996,83909.0,83908.0,0.46143685]
[1745150170027,0.00192996,83909.0,83908.0,1.68583685]
[1745150181131,0.0492,83924.0,83909.0,0.01454085]
[1745150181336,0.0492,83924.0,83910.0,0.53636148]
[1745150181515,0.0492,83924.0,83910.0,0.53397863]
[1745150181851,0.0492,83924.0,83911.0,0.05238277]
[1745150182056,0.0492,83924.0,83913.0,0.34]
[1745150182362,0.0492,83924.0,83915.0,0.34]
[1745150182665,0.0492,83924.0,83917.0,0.34]
[1745150182834,0.0492,83924.0,83919.0,0.34]
[1745150183021,0.0492,83924.0,83921.0,0.34]
[1745150183216,0.0492,83924.0,83923.0,0.34]
[1745150183448,0.0492,83924.0,83923.0,0.46197863]
[1745150184747,0.0488,83931.0,83923.0,0.46197863]
[1745150184951,0.0488,83931.0,83924.0,0.4618307]
[1745150185154,0.0488,83931.0,83924.0,0.45944791]
[1745150185357,0.0488,83931.0,83924.0,0.46197863]
[1745150186313,0.0488,83931.0,83924.0,0.47378918]
[1745150186518,0.0488,83931.0,83924.0,0.61554918]
[1745150189736,0.0488,83931.0,83924.0,1.83978918]
[1745150190162,0.0488,83931.0,83924.0,1.84105454]
[1745150193543,0.0489,83932.0,83924.0,1.84105454]
[1745150200418,0.0489,83932.0,83924.0,1.83971758]
[1745150208787,0.0489,83932.0,83924.0,1.84092254]
[1745150209457,0.0472,83937.0,83924.0,1.50192254]
[1745150209656,0.0472,83937.0,83925.0,0.00238253]
[1745150209879,0.0472,83937.0,83926.0,0.11944791]
[1745150210020,0.0464,83939.0,83927.0,0.00238257]
[1745150210249,0.0464,83939.0,83928.0,0.11944791]
[1745150210654,0.0464,83939.0,83928.0,0.12410896]
[1745150211071,0.0464,83939.0,83928.0,0.46649143]
[1745150211274,0.0464,83939.0,83928.0,0.46410896]
[1745150211472,0.0464,83939.0,83929.0,0.34]
[1745150211683,0.04653581,83939.0,83931.0,0.34]
[1745150211886,0.04653581,83939.0,83933.0,0.34]
[1745150212086,0.04653581,83939.0,83935.0,0.34]
[1745150212302,0.04653581,83939.0,83937.0,0.34]
[1745150212667,0.04653581,83939.0,83938.0,0.45944791]
[1745150212804,0.04653581,83939.0,83938.0,0.46310896]
[1745150215930,0.04653581,83939.0,83938.0,0.60474896]
[1745150219016,0.04653581,83939.0,83938.0,0.60348655]
[1745150219312,0.04653581,83939.0,83938.0,0.46184655]
[1745150219493,0.04653581,83939.0,83938.0,0.60348655]
[1745150220822,0.00013581,83939.0,83938.0,0.60348655]
[1745150223188,0.00013581,83939.0,83938.0,0.60448655]
[1745150224070,0.00013581,83939.0,83938.0,0.60348655]
[1745150225208,0.09963581,83939.0,83938.0,0.34239864]
[1745150225435,0.10063581,83939.0,83938.0,0.48403864]
[1745150227171,0.10063581,83939.0,83938.0,0.34239864]
[1745150227369,0.10063581,83939.0,83938.0,0.48403864]
[1745150228166,0.10063581,83939.0,83938.0,0.34239864]
[1745150228510,0.10063581,83939.0,83938.0,0.48403864]
[1745150229000,0.10063581,83939.0,83938.0,0.34239864]
[1745150229210,0.10063581,83939.0,83938.0,0.48403864]
[1745150230717,0.10063581,83939.0,83938.0,0.34239864]
[1745150231157,0.10063581,83939.0,83938.0,0.48391864]
[1745150237164,0.10063581,83939.0,83938.0,1.70787864]
[1745150238721,0.04973581,83939.0,83938.0,1.70787864]
[1745150238944,0.04973581,83939.0,83938.0,1.82848513]
[1745150240046,0.09963581,83939.0,83938.0,1.70903722]
[1745150240243,0.09963581,83939.0,83938.0,1.56751722]
[1745150240445,0.09963581,83939.0,83938.0,1.70903722]
[1745150241350,0.04973581,83939.0,83938.0,1.70903722]
[1745150243679,0.04258193,83939.0,83938.0,1.82848513]
[1745150244055,0.0008412,83940.0,83938.0,1.82728289]
[1745150244279,0.0008412,83940.0,83939.0,0.11944791]
[1745150244708,0.0008412,83940.0,83939.0,0.12179801]
[1745150246802,0.0008412,83940.0,83939.0,0.12418043]
[1745150247775,0.0008412,83940.0,83939.0,0.46418043]
[1745150247977,0.0008412,83940.0,83939.0,0.46179801]
[1745150254842,0.0008412,83940.0,83939.0,0.46295522]
[1745150267978,0.0008412,83940.0,83939.0,0.60435522]
[1745150270584,0.0008412,83940.0,83939.0,0.46295522]
[1745150270796,0.0008412,83940.0,83939.0,0.60435522]
[1745150275925,0.0008412,83940.0,83939.0,1.82823522]
[1745150281429,0.0496412,83940.0,83939.0,1.70878731]
[1745150281674,0.0496412,83940.0,83939.0,1.56738731]
[1745150281877,0.0496412,83940.0,83939.0,1.70878731]
[1745150282314,0.0496412,83940.0,83939.0,1.56738731]
[1745150283768,0.0496412,83940.0,83939.0,1.70878731]
[1745150286685,0.0496412,83940.0,83939.0,1.56738731]
[1745150286890,0.0496412,83940.0,83939.0,1.70878731]
[1745150287091,0.0979412,83940.0,83939.0,1.70878731]
[1745150288454,0.0979412,83940.0,83939.0,1.70583431]
[1745150288638,0.0979412,83940.0,83939.0,1.7046771]
[1745150289511,0.0979412,83940.0,83939.0,1.5632771]
[1745150289722,0.0979412,83940.0,83939.0,1.7046771]
[1745150295370,0.0969412,83940.0,83939.0,1.7046771]
[1745150297859,0.0481412,83940.0,83939.0,1.7046771]
[1745150298281,0.0481412,83940.0,83939.0,1.7045571]
[1745150299297,0.0008412,83940.0,83939.0,1.7045571]
[1745150306473,0.0008412,83940.0,83939.0,1.7055571]
[1745150307042,0.0008412,83940.0,83939.0,1.7045571]
[1745150311693,0.0008412,83940.0,83939.0,1.6875581]
[1745150312589,0.0008412,83940.0,83939.0,1.6825581]
[1745150313244,0.0008412,83940.0,83939.0,1.6775581]
[1745150318379,0.0008412,83940.0,83939.0,1.79700601]
[1745150320456,0.0008412,83940.0,83939.0,1.65572601]
[1745150320696,0.0008412,83940.0,83939.0,1.79700601]
[1745150328189,0.0008412,83940.0,83939.0,1.79800601]
[1745150335094,0.0008412,83940.0,83939.0,1.79700601]
[1745150341749,0.0008412,83940.0,83939.0,1.6774381]
[1745150341996,0.0008412,83940.0,83939.0,1.5362781]
[1745150342207,0.0008412,83940.0,83939.0,1.6774381]
[1745150344429,0.0008412,83940.0,83939.0,1.79688601]
[1745150351538,0.0008412,83940.0,83939.0,1.79788601]
[1745150351687,0.004,83949.0,83939.0,1.79788601]
[1745150351897,0.004,83949.0,83940.0,0.11944791]
[1745150352322,0.004,83949.0,83941.0,0.14116]
[1745150352526,0.004,83949.0,83942.0,0.11944791]
[1745150352858,0.004,83949.0,83943.0,0.14104]
[1745150353064,0.004,83949.0,83944.0,0.11944791]
[1745150354394,0.00404524,83949.0,83945.0,0.34]
[1745150354534,0.00404524,83949.0,83947.0,0.34]
[1745150354875,0.00404524,83949.0,83948.0,0.45944791]
[1745150356699,0.00404524,83949.0,83948.0,0.47134036]
[1745150360258,0.00404524,83949.0,83948.0,0.61234036]
[1745150360259,0.05094524,83949.0,83948.0,0.61234036]
[1745150360511,0.05094524,83949.0,83948.0,0.47134036]
[1745150360709,0.05094524,83949.0,83948.0,0.61234036]
[1745150361484,0.09904524,83949.0,83948.0,0.61234036]
[1745150365630,0.05214524,83949.0,83948.0,0.61234036]
[1745150367342,0.05214524,83949.0,83948.0,1.83610036]
[1745150377693,0.05214524,83949.0,83948.0,1.69510036]
[1745150377900,0.05214524,83949.0,83948.0,1.83610036]
[1745150378038,0.05214524,83949.0,83948.0,1.69510036]
[1745150378243,0.05214524,83949.0,83948.0,1.83610036]
[1745150378808,0.05214524,83949.0,83948.0,1.69510036]
[1745150378988,0.05214524,83949.0,83948.0,1.83610036]
[1745150379382,0.05214524,83949.0,83948.0,1.69510036]
[1745150379796,0.05214524,83949.0,83948.0,1.83610036]
[1745150383568,0.05214524,83949.0,83948.0,1.69510036]
[1745150383912,0.05214524,83949.0,83948.0,1.83598036]
[1745150384643,0.05214524,83949.0,83948.0,1.69510036]
[1745150384845,0.05214524,83949.0,83948.0,1.83598036]
[1745150385571,0.05214524,83949.0,83948.0,1.82408791]
[1745150391857,0.05214524,83949.0,83948.0,1.56376]
[1745150392044,0.05214524,83949.0,83948.0,1.70464]
[1745150392934,0.05214524,83949.0,83948.0,1.56376]
[1745150393153,0.05214524,83949.0,83948.0,1.70464]
[1745150396457,0.10034524,83949.0,83948.0,1.36464]
[1745150400427,0.10034524,83949.0,83948.0,1.70464]
[1745150403170,0.10134524,83949.0,83948.0,1.70464]
[1745150406180,0.10134524,83949.0,83948.0,1.56376]
[1745150406405,0.10134524,83949.0,83948.0,1.70464]
[1745150406620,0.10134524,83949.0,83948.0,1.56376]
[1745150406874,0.10134524,83949.0,83948.0,1.70464]
[1745150407325,0.10134524,83949.0,83948.0,1.22376]
[1745150407575,0.10134524,83949.0,83948.0,1.36464]
[1745150408754,0.0489,83945.0,83926.0,0.09407614]
[1745150408976,0.0489,83942.0,83927.0,1.70476]
[1745150409202,0.00238327,83941.0,83927.0,1.70476]
[1745150409432,0.00238327,83941.0,83928.0,0.14088]
[1745150411371,0.0473,83940.0,83928.0,0.14088]
[1745150411585,0.00238327,83939.0,83928.0,0.14088]
[1745150411805,0.0473,83937.0,83929.0,1.36476]
[1745150412052,0.0931,83935.0,83929.0,1.36476]
[1745150412295,0.00238327,83934.0,83929.0,1.36476]
[1745150412736,0.00338327,83934.0,83930.0,0.34]
[1745150415432,0.00238327,83934.0,83930.0,0.34]
[1745150421601,0.00438327,83934.0,83930.0,0.34]
[1745150427904,0.00238327,83934.0,83930.0,0.34]
[1745150436526,0.00238327,83934.0,83931.0,0.1408]
[1745150441239,0.00238327,83934.0,83932.0,1.22408]
[1745150446028,0.00238327,83934.0,83933.0,0.14068]
[1745150454732,0.00238327,83946.0,83933.0,0.14068]
[1745150454940,0.11944791,83945.0,83933.0,0.14068]
[1745150455147,0.0959,83940.0,83933.0,0.14068]
[1745150455323,0.0495,83938.0,83933.0,0.14068]
[1745150455530,0.00238327,83937.0,83933.0,0.14068]
[1745150456724,0.0495,83936.0,83933.0,0.14068]
[1745150456862,0.00238327,83935.0,83933.0,0.14068]
[1745150457781,0.00238327,83935.0,83934.0,1.22412]
[1745150457992,0.00238327,83935.0,83934.0,1.3648]
[1745150458626,0.00338327,83935.0,83934.0,1.3648]
[1745150458838,0.04978327,83935.0,83934.0,1.3648]
[1745150461994,0.04878327,83935.0,83934.0,1.3648]
[1745150469111,0.16823118,83935.0,83934.0,1.22412]
[1745150469333,0.16823118,83935.0,83934.0,1.3648]
[1745150470134,0.04878327,83935.0,83934.0,1.3648]
[1745150474484,0.18126126,83951.0,83934.0,1.3648]
[1745150474680,0.11944791,83950.0,83934.0,1.36484524]
[1745150476986,0.05598458,83957.0,83934.0,1.36484524]
[1745150477436,0.17543249,83957.0,83935.0,0.0494]
[1745150477920,0.18421712,83957.0,83935.0,0.0494]
[1745150478139,0.12823254,83957.0,83935.0,0.0494]
[1745150478396,0.05598458,83958.0,83936.0,0.11944791]
[1745150478633,0.05598458,83958.0,83937.0,0.0947]
[1745150478816,0.05598458,83958.0,83937.0,0.21414791]
[1745150480588,0.0008408,83959.0,83938.0,0.34]
[1745150483147,0.0008408,83959.0,83939.0,0.0481]
[1745150483350,0.0008408,83959.0,83940.0,0.11944791]
[1745150483562,0.0008408,83959.0,83941.0,0.05048246]
[1745150483727,0.0008408,83959.0,83942.0,0.11944791]
[1745150483930,0.0008408,83959.0,83943.0,0.05048232]
[1745150484136,0.0008408,83959.0,83944.0,0.11944791]
[1745150485848,0.0008408,83959.0,83945.0,0.046]
[1745150486075,0.0008408,83959.0,83946.0,0.11944791]
[1745150487446,0.0008408,83959.0,83947.0,0.4312]
[1745150487658,0.0008408,83959.0,83947.0,0.55064791]
[1745150488380,0.0008408,83959.0,83947.0,0.5388951]
[1745150501148,0.0008408,83959.0,83948.0,0.14056]
[1745150505902,0.0008408,83959.0,83949.0,1.22376]
[1745150507191,0.39598458,83997.0,83975.0,1.11169576]
[1745150507396,0.05598458,83996.0,83976.0,0.14044]
[1745150507566,0.11944791,83982.0,83976.0,0.14044]
[1745150507984,0.12044791,83982.0,83976.0,0.14044]
[1745150508383,0.1295815,83982.0,83976.0,0.14044]
[1745150510247,0.0921,83981.0,83976.0,0.14044]
[1745150510547,0.11944791,83980.0,83976.0,0.14044]
[1745150510954,0.12044791,83980.0,83976.0,0.14044]
[1745150511758,0.12044791,83980.0,83977.0,1.22376]
[1745150512370,0.1251,83979.0,83977.0,1.22376]
[1745150512522,0.11944791,83978.0,83977.0,1.22376]
[1745150512918,0.12044791,83978.0,83977.0,1.22376]
[1745150517165,0.001,83978.0,83977.0,1.22376]
[1745150518170,8.089e-05,83982.0,83977.0,1.22376]
[1745150521688,0.11944791,83981.0,83977.0,1.22376]
[1745150522120,0.11944791,83981.0,83978.0,0.1404]
[1745150522561,0.12044791,83981.0,83978.0,0.1404]
[1745150525031,0.11944791,83981.0,83978.0,0.1404]
[1745150525267,8.089e-05,83982.0,83980.0,0.09407614]
[1745150525467,8.089e-05,83982.0,83980.0,0.09507614]
[1745150526603,8.089e-05,83982.0,83980.0,0.001]
[1745150528547,8.089e-05,83982.0,83979.0,0.4344]
[1745150528748,0.001,83980.0,83979.0,0.4344]
[1745150529087,0.001,83980.0,83979.0,0.3856]
[1745150529255,0.001,83980.0,83979.0,0.3866]
[1745150529640,0.001,83980.0,83979.0,0.3856]
[1745150532049,0.00108089,83982.0,83979.0,0.3856]
[1745150535772,0.00108089,83982.0,83979.0,0.34]
[1745150537402,0.00108089,83982.0,83980.0,0.0491]
[1745150537968,0.00108089,83982.0,83981.0,0.14028]
[1745150538489,0.00108089,83982.0,83981.0,0.35902791]
[1745150538688,0.00108089,83982.0,83981.0,0.23958]
[1745150539218,0.00108089,83982.0,83981.0,0.0993]
[1745150539439,0.00108089,83982.0,83981.0,0.23958]
[1745150546293,0.00108089,83982.0,83981.0,0.23858]
[1745150548541,0.00108089,83982.0,83981.0,0.14028]
[1745150548752,0.00108089,83982.0,83977.0,1.22376]
[1745150548960,0.00108089,83982.0,83978.0,0.14024]
[1745150551924,0.00108089,83982.0,83981.0,0.35454085]
[1745150552130,0.00108089,83982.0,83981.0,0.52158876]
[1745150552347,0.05598458,84021.0,83982.0,0.0463]
[1745150552566,0.00045252,83993.0,83985.0,0.0463]
[1745150553412,0.00045252,83993.0,83987.0,0.34]
[1745150553612,0.00045252,83993.0,83989.0,0.34]
[1745150553985,0.00045252,83993.0,83991.0,0.34]
[1745150557038,0.00045252,83993.0,83992.0,0.11944791]
[1745150557493,0.00045252,83993.0,83990.0,0.14024]
[1745150557697,0.00045252,83993.0,83991.0,0.25968791]
[1745150558471,0.00045252,83993.0,83992.0,0.0479]
[1745150558677,0.00045252,83993.0,83992.0,0.50734791]
[1745150559081,0.00045252,83993.0,83992.0,0.50834791]
[1745150560483,0.00045252,83993.0,83992.0,0.55574791]
[1745150560939,0.00045252,83993.0,83992.0,0.69598791]
[1745150561368,0.00045252,83993.0,83992.0,0.57554]
[1745150561683,0.00045252,83993.0,83992.0,0.52814]
[1745150562361,0.00045252,83993.0,83992.0,0.3879]
[1745150562563,0.00045252,83993.0,83992.0,0.52814]
[1745150571976,0.00045252,83993.0,83992.0,0.48024]
[1745150572122,0.00045252,83993.0,83992.0,0.48012]
[1745150573426,0.00045252,83993.0,83992.0,0.34]
[1745150573606,0.00045252,83993.0,83992.0,0.48012]
[1745150574399,0.00145252,83993.0,83992.0,0.48012]
[1745150577312,0.00145252,83993.0,83992.0,1.70328]
[1745150578691,0.00145252,83993.0,83992.0,1.36328]
[1745150579935,0.04945252,83993.0,83992.0,1.36332]
[1745150583785,0.00145252,83993.0,83992.0,1.36332]
[1745150587952,0.00045252,83993.0,83992.0,1.36332]
[1745150603642,0.00045252,83993.0,83992.0,1.41062]
[1745150611417,0.00045252,83993.0,83992.0,1.53106791]
[1745150615509,0.00045252,83993.0,83992.0,1.53006791]
[1745150615891,0.00045252,83993.0,83992.0,1.91726791]
[1745150616300,0.00045252,83993.0,83992.0,1.91626791]
[1745150616652,0.00045252,83993.0,83992.0,1.91726791]
[1745150616811,0.00045252,83993.0,83992.0,1.77610791]
[1745150617185,0.00045252,83993.0,83992.0,1.91614791]
[1745150619991,0.00045252,83993.0,83992.0,1.91714791]
[1745150623168,0.00045252,83993.0,83992.0,1.93168876]
[1745150623425,0.00045252,83993.0,83992.0,1.91714791]
[1745150638650,0.00045252,83993.0,83992.0,0.69398791]
[1745150639715,0.00045252,83993.0,83992.0,0.70141136]
[1745150640673,0.00045252,83993.0,83992.0,0.56137136]
[1745150640871,0.00045252,83993.0,83992.0,0.97337136]
[1745150641234,0.0008408,84016.0,83996.0,0.06234085]
[1745150641434,0.0009765,84016.0,84000.0,0.35454085]
[1745150641641,0.0009765,84016.0,84003.0,0.0943]
[1745150641869,0.0009765,84016.0,84006.0,0.0478]
[1745150642082,0.0009765,84016.0,84008.0,0.34]
[1745150642259,0.0009765,84016.0,84010.0,0.34]
[1745150642461,0.0009765,84016.0,84012.0,0.34]
[1745150643711,0.0009765,84016.0,84010.0,0.11944791]
[1745150644329,0.0009765,84016.0,84011.0,0.11944791]
[1745150645177,0.0009765,84016.0,84012.0,1.36292]
[1745150645387,0.0009765,84016.0,84013.0,0.11944791]
[1745150645620,0.0009765,84016.0,84013.0,0.11927491]
[1745150646984,0.0009765,84016.0,84012.0,1.37671432]
[1745150648764,0.0009765,84016.0,84013.0,0.12182819]
[1745150648977,0.0009765,84016.0,84013.0,0.11649391]
[1745150649183,0.0009765,84016.0,84014.0,0.34238015]
[1745150649393,0.0009765,84016.0,84015.0,0.16654791]
[1745150649586,0.0009765,84016.0,84015.0,0.16892793]
[1745150649770,0.0009765,84016.0,84015.0,0.16992793]
[1745150649978,0.0009765,84016.0,84015.0,0.50992793]
[1745150650167,0.0009765,84016.0,84015.0,0.50754791]
[1745150651563,0.0009765,84016.0,84015.0,0.52208876]
[1745150651946,0.0009765,84016.0,84015.0,0.56908876]
[1745150653615,0.0009765,84016.0,84015.0,0.70900876]
[1745150653818,0.0009765,84016.0,84015.0,0.64746791]
[1745150654015,0.0009765,84016.0,84015.0,0.64646791]
[1745150654863,0.0009765,84016.0,84015.0,0.50654791]
[1745150655079,0.0009765,84016.0,84015.0,0.59936791]
[1745150657378,0.0009765,84016.0,84015.0,0.60678962]
[1745150658831,0.0009765,84016.0,84015.0,0.60674962]
[1745150659346,0.0009765,84016.0,84015.0,0.65374962]
[1745150660512,0.0009765,84016.0,84015.0,0.65474962]
[1745150660744,0.0009765,84016.0,84015.0,0.66929047]
[1745150660920,0.0009765,84016.0,84015.0,0.71629047]
[1745150661480,0.0009765,84016.0,84015.0,1.12829047]
[1745150661890,0.0023412,84049.0,84016.0,0.047]
[1745150662095,0.00013565,84044.0,84018.0,0.047]
[1745150662293,0.00013565,84044.0,84020.0,0.387]
[1745150662543,0.00013565,84044.0,84022.0,0.387]
[1745150662740,0.00013565,84044.0,84024.0,0.34]
[1745150662947,0.00013565,84044.0,84026.0,0.34]
[1745150663198,0.00872909,84062.0,84028.0,0.387]
[1745150663424,0.11944791,84061.0,84030.0,0.34]
[1745150663646,0.11944791,84061.0,84032.0,0.34]
[1745150663793,0.11944791,84061.0,84033.0,0.00237973]
[1745150663998,0.11944791,84061.0,84034.0,0.0074214]
[1745150664354,0.0008412,84050.0,84035.0,0.00237969]
[1745150664659,0.0008412,84050.0,84036.0,0.00742104]
[1745150664857,0.0008412,84050.0,84037.0,0.00237963]
[1745150665019,0.0008412,84050.0,84038.0,0.0498]
[1745150665224,0.0008412,84050.0,84039.0,0.00742106]
[1745150665447,0.0008412,84050.0,84040.0,0.00742106]
[1745150666009,0.0008412,84050.0,84041.0,0.00742106]
[1745150666411,0.0008412,84050.0,84042.0,0.00742106]
[1745150666608,0.0008412,84050.0,84043.0,1.23010106]
[1745150667069,0.0008412,84050.0,84044.0,0.12182754]
[1745150667294,0.0008412,84050.0,84044.0,0.00742106]
[1745150667629,0.0008412,84050.0,84043.0,1.22268]
[1745150668325,0.0008412,84050.0,84044.0,0.12182733]
[1745150668728,0.0008412,84050.0,84043.0,1.22268]
[1745150669766,0.0008412,84050.0,84044.0,0.34]
[1745150670065,0.0008412,84050.0,84044.0,0.47976]
[1745150671777,0.0008412,84050.0,84046.0,0.34]
[1745150672881,0.0008412,84050.0,84048.0,0.34]
[1745150673257,0.0008412,84050.0,84049.0,0.13976]
[1745150673808,0.0018412,84050.0,84049.0,0.13976]
[1745150674029,0.0008412,84050.0,84049.0,0.13976]
[1745150674474,0.0018412,84050.0,84049.0,0.13976]
[1745150675199,0.00063623,84050.0,84049.0,0.13976]
[1745150675767,0.00063623,84050.0,84049.0,0.15373546]
[1745150678373,0.00063623,84050.0,84049.0,0.31838337]
[1745150680100,0.00063623,84050.0,84049.0,0.65938337]
[1745150680849,0.00063623,84050.0,84049.0,0.65838337]
[1745150681233,0.00063623,84050.0,84049.0,0.51862337]
[1745150681434,0.00063623,84050.0,84049.0,0.65838337]
[1745150683046,0.00131823,84069.0,84050.0,0.34]
[1745150683272,0.00131823,84069.0,84052.0,0.34]
[1745150683512,0.00131823,84069.0,84053.0,0.11944791]
[1745150683989,0.00131823,84069.0,84049.0,0.19893546]
[1745150684190,0.00131823,84069.0,84062.0,0.0473]
[1745150684417,0.00131823,84069.0,84063.0,0.12182655]
[1745150684668,0.00894113,84078.0,84064.0,0.13976]
[1745150685102,0.00939348,84078.0,84064.0,0.13976]
[1745150685542,0.00939348,84078.0,84064.0,0.25920791]
[1745150686202,0.00939348,84078.0,84065.0,0.0483]
[1745150686423,0.00939348,84078.0,84072.0,0.0483]
[1745150686647,0.00939348,84078.0,84073.0,0.00237851]
[1745150686842,0.00939348,84078.0,84074.0,1.22228]
[1745150687348,0.05699348,84078.0,84075.0,0.13972]
[1745150688198,0.05699348,84078.0,84074.0,1.22228]
[1745150688354,0.05699348,84078.0,84076.0,0.13972]
[1745150690625,0.00939348,84078.0,84076.0,0.13972]
[1745150701309,0.01039348,84078.0,84076.0,0.13972]
[1745150701507,0.05949348,84078.0,84074.0,1.22228]
[1745150701737,0.05949348,84078.0,84077.0,0.13964]
[1745150703659,0.01039348,84078.0,84077.0,0.13964]
[1745150710518,0.12984139,84078.0,84077.0,0.13964]
[1745150710723,0.17864139,84078.0,84077.0,0.13964]
[1745150710924,0.22774139,84078.0,84077.0,0.13964]
[1745150712493,0.23656457,84078.0,84077.0,0.13964]
[1745150713523,0.23635298,84078.0,84077.0,0.13964]
[1745150714151,0.41761424,84078.0,84077.0,0.13964]
[1745150715029,0.4311077,84078.0,84077.0,0.13964]
[1745150717230,0.4311077,84078.0,84077.0,0.13968]
[1745150719030,0.7711077,84078.0,84077.0,0.13968]
[1745150719209,0.8211077,84078.0,84077.0,0.13968]
[1745150722641,0.8211077,84078.0,84074.0,1.22228]
[1745150722642,0.05,84075.0,84074.0,1.22228]
[1745150722856,0.16944791,84075.0,84074.0,1.36192]
[1745150723097,0.35170917,84075.0,84074.0,1.36192]
[1745150724520,0.25170917,84075.0,84074.0,1.36192]
[1745150725326,0.26625002,84075.0,84074.0,1.36192]
[1745150726403,0.33760002,84075.0,84074.0,1.36192]
[1745150726603,0.26625002,84075.0,84074.0,1.36192]
[1745150731159,0.26525002,84075.0,84074.0,1.37279347]
[1745150731376,0.26625002,84075.0,84074.0,1.36916898]
[1745150732257,0.39135002,84075.0,84074.0,1.36916898]
[1745150732847,0.39135002,84075.0,84074.0,0.14688898]
[1745150733774,0.39135002,84075.0,84074.0,0.00724898]
[1745150733991,0.39135002,84075.0,84074.0,0.14692898]
[1745150734197,0.39135002,84075.0,84074.0,0.13968]
[1745150734395,0.39135002,84075.0,84074.0,0.14692898]
[1745150734743,0.39135002,84075.0,84074.0,0.13968]
[1745150735583,0.96923286,84075.0,84074.0,0.13968]
[1745150736099,0.82815002,84075.0,84074.0,0.13968]
[1745150736462,0.89950002,84075.0,84074.0,0.13968]
[1745150737600,0.90050002,84075.0,84074.0,0.13968]
[1745150738392,0.13964085,84066.0,84062.0,1.22248]
[1745150738593,0.13964085,84066.0,84063.0,0.13968]
[1745150738794,0.13398876,84064.0,84063.0,0.14660825]
[1745150739201,0.13498876,84064.0,84063.0,0.14660825]
[1745150740239,0.18238876,84064.0,84063.0,0.14660825]
[1745150740761,0.36365002,84064.0,84063.0,0.14660825]
[1745150744415,0.36365002,84064.0,84063.0,0.00692825]
[1745150744743,0.36365002,84064.0,84063.0,0.14660825]
[1745150746322,0.48875002,84064.0,84063.0,0.14660825]
[1745150749074,0.44135002,84064.0,84063.0,0.14660825]
[1745150755886,0.30070917,84064.0,84063.0,0.19170825]
[1745150762106,0.05581119,84070.0,84063.0,0.19330825]
[1745150762316,0.05581119,84070.0,84065.0,0.0457]
[1745150762573,0.05581119,84070.0,84066.0,0.05146099]
[1745150762775,0.05581119,84070.0,84067.0,0.0457]
[1745150762998,0.05581119,84070.0,84069.0,0.0457]
[1745150763298,0.05581119,84070.0,84069.0,0.0908]
[1745150763464,0.05581119,84070.0,84069.0,0.09816099]
[1745150764584,0.00918189,84078.0,84070.0,0.0451]
[1745150764734,0.00918189,84078.0,84070.0,0.0461]
[1745150764929,0.00918189,84078.0,84072.0,0.0454]
[1745150765141,0.00918189,84078.0,84073.0,0.00636099]
[1745150765353,0.00918189,84078.0,84074.0,0.0454]
[1745150765556,0.00918189,84078.0,84074.0,0.05176099]
[1745150765946,0.00918189,84078.0,84074.0,0.05276099]
[1745150766191,0.00918189,84078.0,84075.0,1.36204]
[1745150766408,0.00918189,84078.0,84076.0,1.36204]
[1745150767122,0.00918189,84078.0,84077.0,0.0058309]
[1745150767568,0.00918189,84078.0,84077.0,0.0068309]
[1745150768234,0.0008412,84084.0,84077.0,0.00920926]
[1745150768458,0.00097677,84084.0,84077.0,0.00920926]
[1745150768674,0.00097677,84084.0,84078.0,0.11944791]
[1745150769139,0.00097677,84084.0,84080.0,0.0915]
[1745150769613,0.00097677,84084.0,84082.0,0.0915]
[1745150769812,0.00097677,84084.0,84083.0,0.09387825]
[1745150770053,0.00097677,84084.0,84083.0,0.09487825]
[1745150770282,0.00097677,84084.0,84083.0,0.21981798]
[1745150770532,0.00097677,84084.0,84083.0,0.21743973]
[1745150770760,0.0008414,84101.0,84083.0,0.21981783]
[1745150770975,0.0008414,84101.0,84084.0,0.11944791]
[1745150771199,0.0008414,84101.0,84085.0,0.00237802]
[1745150771408,0.0008414,84101.0,84086.0,0.11944791]
[1745150771626,0.0008414,84101.0,84087.0,0.0909]
[1745150771843,0.0008414,84101.0,84088.0,0.16524791]
[1745150772046,0.0008414,84101.0,84088.0,0.21272593]
[1745150772264,0.0008414,84101.0,84088.0,0.21921775]
[1745150773033,0.0008414,84101.0,84089.0,0.3858]
[1745150773241,4.516e-05,84096.0,84092.0,0.0909]
[1745150773394,4.516e-05,84096.0,84095.0,0.0909]
[1745150773600,4.516e-05,84096.0,84095.0,0.55272565]
[1745150773809,0.0008414,84101.0,84096.0,0.4309]
[1745150774008,0.0008414,84101.0,84095.0,0.49677892]
[1745150774009,0.0008414,84118.0,84098.0,0.34]
[1745150774317,0.00488656,84109.0,84101.0,0.0909]
[1745150774522,0.00488656,84109.0,84103.0,0.34]
[1745150774729,0.00488656,84109.0,84105.0,0.34]
[1745150774933,0.00488656,84109.0,84107.0,0.34]
[1745150775158,0.00488656,84109.0,84108.0,0.52886]
[1745150775359,0.00488656,84109.0,84108.0,1.7555458]
[1745150775513,0.00488656,84109.0,84108.0,1.87499371]
[1745150775718,0.00488656,84109.0,84108.0,1.87599371]
[1745150776119,0.00488656,84109.0,84108.0,1.7565458]
[1745150776443,0.00488656,84109.0,84108.0,1.7555458]
[1745150777862,0.00488656,84109.0,84108.0,1.7565458]
[1745150778210,0.00488656,84109.0,84108.0,1.87599371]
[1745150780061,0.00488656,84109.0,84108.0,1.92229371]
[1745150780450,0.0008414,84118.0,84108.0,1.92229371]